{"text_format":"1","workbook":"xlsx","n_sheets":14,"sheets":["DATA","شباط","آذار","نيسان","أيار","حزيران","تموز","آب","أيلول","تشرين1","تشرين2","كانون1","كانون2","Control"],"not_rendered":{"charts":0,"images":2,"macros":1,"external_links":0,"defined_names":14,"comments":0,"pivot_tables":0},"unopened":[],"bounds":{"document_bytes":16777216,"sheet_cells":100000,"rows_first":2000,"rows_last":500,"rows_between":2000,"halvings":0,"cell_chars":16384,"cell_head_chars":4096},"cells_cut":0,"cells_raw":0,"read":"whole","date_system":"1900"}

{"sheet":"DATA","index":0,"n_rows":15,"n_cols":24,"rows_kept":15,"cut":false,"hidden":false,"merged":[[0,2,0,4],[0,5,0,7],[0,15,0,16]]}
[null,null,null,null,null,null,null,null,null," أدخل كلمة البحث  ",null,null,null,"عدد المشتركين",{"$f":"COUNTA(B4:B15)","v":12},{"$f":"SUM(W4:W15)","v":43100},null,null,null,null,null,null,null,"DATA"]
[null,null,""]
["الرقم","الإسم","رقم المشترك","رقم العلبة","المنطقة","الشارع","البناية","الطابق","هاتف","تاريخ الإشتراك","D","A","C","D","المبلغ المدفوع","تاريخ الدفعة","إستهلاك الكيلوات","إنتقال المتأخرات","سعر العداد","سعر الديجنتير","إجمالي سعر الكيلوات","رسم الإشتراك","المبلغ المطلوب","مدفوع / غير"]
[{"$f":"ROW()-3","v":1},"ابراهيم 1",159,112,1,"A",null,6,null,null,null,5,231,100,2500,null,null,1500,null,null,5000,null,{"$f":"SUM(R4:U4)-O4","v":4000},{"$f":"IF(W4<=0,\"مدفوع\",\"غير مدفوع\")","v":"غير مدفوع"}]
[2,"ابراهيم 2",143,"107",1,"A",null,2,null,null,null,6,224,100,6400,null,null,null,null,null,6400,null,{"$f":"SUM(R5:U5)-O5","v":0},{"$f":"IF(W5<=0,\"مدفوع\",\"غير مدفوع\")","v":"مدفوع"}]
[3,"جمال",147,"107",2,"C",null,1,null,null,null,3,300,167,1000,null,null,null,null,null,7500,null,{"$f":"SUM(R6:U6)-O6","v":6500},"غير مدفوع"]
[4,"محمود",231,"107",4,"D",null,5,null,null,null,3,null,null,1200,null,{"$f":"SUM(M7-N7)","v":0},null,null,null,8300,null,7100,"غير مدفوع"]
[5,"نادر 1",256,"112",9,"A",null,8,null,null,null,6,null,null,1300,null,0,null,null,null,5500,null,4200,"غير مدفوع"]
[6,"نادر 2",324,"102",9,"B",null,4,null,null,null,2.5,null,null,1400,null,0,null,null,null,2500,null,1100,"غير مدفوع"]
[7,"نادر 3",528,"114",9,"B",null,4,null,null,null,10,null,null,1500,null,0,null,null,null,9500,null,8000,"غير مدفوع"]
[8,"احمد 2",258,"104",7,"E",null,2,null,null,null,5,null,null,1000,null,0,null,null,null,5000,null,4000,"غير مدفوع"]
[9,"احمد 1",135,"118",4,"E",null,1,null,null,null,5,null,null,1200,null,0,null,null,null,5000,null,3800,"غير مدفوع"]
[10,"سالم 1",125,"108",8,"D",null,1,null,null,null,3,null,null,2300,null,null,null,null,null,3200,null,900,"غير مدفوع"]
[11,"سالم 2",110,"118",8,"C",null,3,null,null,null,5,null,null,5000,null,null,null,null,null,5000,null,0,"مدفوع"]
[12,"سالم 3",197,"132",6,"C",null,2,null,null,null,5,null,null,1500,null,null,null,null,null,5000,null,3500,"غير مدفوع"]

{"sheet":"شباط","index":1,"n_rows":15,"n_cols":24,"rows_kept":15,"cut":false,"hidden":false,"merged":[]}
[]
[]
["الرقم","الإسم","رقم المشترك","رقم العلبة","المنطقة","الشارع","البناية","الطابق","هاتف","تاريخ الإشتراك","D","A","C","D","المبلغ المدفوع","تاريخ الدفعة","إستهلاك الكيلوات","إنتقال المتأخرات","سعر العداد","سعر الديجنتير","إجمالي سعر الكيلوات","رسم الإشتراك","المبلغ المطلوب","مدفوع / غير"]
[{"$f":"ROW()-3","v":1},"ابراهيم 1",159,112,1,"A",null,6,null,null,null,5,231,100,2500,null,null,1500,null,null,5000,null,{"$f":"SUM(R4:U4)-O4","v":4000},{"$f":"IF(W4<=0,\"مدفوع\",\"غير مدفوع\")","v":"غير مدفوع"}]
[2,"ابراهيم 2",143,"107",1,"A",null,2,null,null,null,6,224,100,6400,null,null,null,null,null,6400,null,{"$f":"SUM(R5:U5)-O5","v":0},{"$f":"IF(W5<=0,\"مدفوع\",\"غير مدفوع\")","v":"مدفوع"}]
[3,"جمال",147,"107",2,"C",null,1,null,null,null,3,300,167,1000,null,null,null,null,null,7500,null,{"$f":"SUM(R6:U6)-O6","v":6500},"غير مدفوع"]
[4,"محمود",231,"107",4,"D",null,5,null,null,null,3,null,null,1200,null,{"$f":"SUM(M7-N7)","v":0},null,null,null,8300,null,7100,"غير مدفوع"]
[5,"نادر 1",256,"112",9,"A",null,8,null,null,null,6,null,null,1300,null,0,null,null,null,5500,null,4200,"غير مدفوع"]
[6,"نادر 2",324,"102",9,"B",null,4,null,null,null,2.5,null,null,1400,null,0,null,null,null,2500,null,1100,"غير مدفوع"]
[7,"نادر 3",528,"114",9,"B",null,4,null,null,null,10,null,null,1500,null,0,null,null,null,9500,null,8000,"غير مدفوع"]
[8,"احمد 2",258,"104",7,"E",null,2,null,null,null,5,null,null,1000,null,0,null,null,null,5000,null,4000,"غير مدفوع"]
[9,"احمد 1",135,"118",4,"E",null,1,null,null,null,5,null,null,1200,null,0,null,null,null,5000,null,3800,"غير مدفوع"]
[10,"سالم 1",125,"108",8,"D",null,1,null,null,null,3,null,null,2300,null,null,null,null,null,3200,null,900,"غير مدفوع"]
[11,"سالم 2",110,"118",8,"C",null,3,null,null,null,5,null,null,5000,null,null,null,null,null,5000,null,0,"مدفوع"]
[12,"سالم 3",197,"132",6,"C",null,2,null,null,null,5,null,null,1500,null,null,null,null,null,5000,null,3500,"غير مدفوع"]

{"sheet":"آذار","index":2,"n_rows":15,"n_cols":24,"rows_kept":15,"cut":false,"hidden":false,"merged":[]}
[]
[]
["الرقم","الإسم","رقم المشترك","رقم العلبة","المنطقة","الشارع","البناية","الطابق","هاتف","تاريخ الإشتراك","D","A","C","D","المبلغ المدفوع","تاريخ الدفعة","إستهلاك الكيلوات","إنتقال المتأخرات","سعر العداد","سعر الديجنتير","إجمالي سعر الكيلوات","رسم الإشتراك","المبلغ المطلوب","مدفوع / غير"]
[{"$f":"ROW()-3","v":1},"ابراهيم 1",159,112,1,"A",null,6,null,null,null,5,231,100,2500,null,null,1500,null,null,5000,null,{"$f":"SUM(R4:U4)-O4","v":4000},{"$f":"IF(W4<=0,\"مدفوع\",\"غير مدفوع\")","v":"غير مدفوع"}]
[2,"ابراهيم 2",143,"107",1,"A",null,2,null,null,null,6,224,100,6400,null,null,null,null,null,6400,null,{"$f":"SUM(R5:U5)-O5","v":0},{"$f":"IF(W5<=0,\"مدفوع\",\"غير مدفوع\")","v":"مدفوع"}]
[3,"جمال",147,"107",2,"C",null,1,null,null,null,3,300,167,1000,null,null,null,null,null,7500,null,{"$f":"SUM(R6:U6)-O6","v":6500},"غير مدفوع"]
[4,"محمود",231,"107",4,"D",null,5,null,null,null,3,null,null,1200,null,{"$f":"SUM(M7-N7)","v":0},null,null,null,8300,null,7100,"غير مدفوع"]
[5,"نادر 1",256,"112",9,"A",null,8,null,null,null,6,null,null,1300,null,0,null,null,null,5500,null,4200,"غير مدفوع"]
[6,"نادر 2",324,"102",9,"B",null,4,null,null,null,2.5,null,null,1400,null,0,null,null,null,2500,null,1100,"غير مدفوع"]
[7,"نادر 3",528,"114",9,"B",null,4,null,null,null,10,null,null,1500,null,0,null,null,null,9500,null,8000,"غير مدفوع"]
[8,"احمد 2",258,"104",7,"E",null,2,null,null,null,5,null,null,1000,null,0,null,null,null,5000,null,4000,"غير مدفوع"]
[9,"احمد 1",135,"118",4,"E",null,1,null,null,null,5,null,null,1200,null,0,null,null,null,5000,null,3800,"غير مدفوع"]
[10,"سالم 1",125,"108",8,"D",null,1,null,null,null,3,null,null,2300,null,null,null,null,null,3200,null,900,"غير مدفوع"]
[11,"سالم 2",110,"118",8,"C",null,3,null,null,null,5,null,null,5000,null,null,null,null,null,5000,null,0,"مدفوع"]
[12,"سالم 3",197,"132",6,"C",null,2,null,null,null,5,null,null,1500,null,null,null,null,null,5000,null,3500,"غير مدفوع"]

{"sheet":"نيسان","index":3,"n_rows":15,"n_cols":24,"rows_kept":15,"cut":false,"hidden":false,"merged":[]}
[]
[]
["الرقم","الإسم","رقم المشترك","رقم العلبة","المنطقة","الشارع","البناية","الطابق","هاتف","تاريخ الإشتراك","D","A","C","D","المبلغ المدفوع","تاريخ الدفعة","إستهلاك الكيلوات","إنتقال المتأخرات","سعر العداد","سعر الديجنتير","إجمالي سعر الكيلوات","رسم الإشتراك","المبلغ المطلوب","مدفوع / غير"]
[{"$f":"ROW()-3","v":1},"ابراهيم 1",159,112,1,"A",null,6,null,null,null,5,231,100,2500,null,null,1500,null,null,5000,null,{"$f":"SUM(R4:U4)-O4","v":4000},{"$f":"IF(W4<=0,\"مدفوع\",\"غير مدفوع\")","v":"غير مدفوع"}]
[2,"ابراهيم 2",143,"107",1,"A",null,2,null,null,null,6,224,100,6400,null,null,null,null,null,6400,null,{"$f":"SUM(R5:U5)-O5","v":0},{"$f":"IF(W5<=0,\"مدفوع\",\"غير مدفوع\")","v":"مدفوع"}]
[3,"جمال",147,"107",2,"C",null,1,null,null,null,3,300,167,1000,null,null,null,null,null,7500,null,{"$f":"SUM(R6:U6)-O6","v":6500},"غير مدفوع"]
[4,"محمود",231,"107",4,"D",null,5,null,null,null,3,null,null,1200,null,{"$f":"SUM(M7-N7)","v":0},null,null,null,8300,null,7100,"غير مدفوع"]
[5,"نادر 1",256,"112",9,"A",null,8,null,null,null,6,null,null,1300,null,0,null,null,null,5500,null,4200,"غير مدفوع"]
[6,"نادر 2",324,"102",9,"B",null,4,null,null,null,2.5,null,null,1400,null,0,null,null,null,2500,null,1100,"غير مدفوع"]
[7,"نادر 3",528,"114",9,"B",null,4,null,null,null,10,null,null,1500,null,0,null,null,null,9500,null,8000,"غير مدفوع"]
[8,"احمد 2",258,"104",7,"E",null,2,null,null,null,5,null,null,1000,null,0,null,null,null,5000,null,4000,"غير مدفوع"]
[9,"احمد 1",135,"118",4,"E",null,1,null,null,null,5,null,null,1200,null,0,null,null,null,5000,null,3800,"غير مدفوع"]
[10,"سالم 1",125,"108",8,"D",null,1,null,null,null,3,null,null,2300,null,null,null,null,null,3200,null,900,"غير مدفوع"]
[11,"سالم 2",110,"118",8,"C",null,3,null,null,null,5,null,null,5000,null,null,null,null,null,5000,null,0,"مدفوع"]
[12,"سالم 3",197,"132",6,"C",null,2,null,null,null,5,null,null,1500,null,null,null,null,null,5000,null,3500,"غير مدفوع"]

{"sheet":"أيار","index":4,"n_rows":15,"n_cols":24,"rows_kept":15,"cut":false,"hidden":false,"merged":[]}
[]
[]
["الرقم","الإسم","رقم المشترك","رقم العلبة","المنطقة","الشارع","البناية","الطابق","هاتف","تاريخ الإشتراك","D","A","C","D","المبلغ المدفوع","تاريخ الدفعة","إستهلاك الكيلوات","إنتقال المتأخرات","سعر العداد","سعر الديجنتير","إجمالي سعر الكيلوات","رسم الإشتراك","المبلغ المطلوب","مدفوع / غير"]
[{"$f":"ROW()-3","v":1},"ابراهيم 1",159,112,1,"A",null,6,null,null,null,5,231,100,2500,null,null,1500,null,null,5000,null,{"$f":"SUM(R4:U4)-O4","v":4000},{"$f":"IF(W4<=0,\"مدفوع\",\"غير مدفوع\")","v":"غير مدفوع"}]
[2,"ابراهيم 2",143,"107",1,"A",null,2,null,null,null,6,224,100,6400,null,null,null,null,null,6400,null,{"$f":"SUM(R5:U5)-O5","v":0},{"$f":"IF(W5<=0,\"مدفوع\",\"غير مدفوع\")","v":"مدفوع"}]
[3,"جمال",147,"107",2,"C",null,1,null,null,null,3,300,167,1000,null,null,null,null,null,7500,null,{"$f":"SUM(R6:U6)-O6","v":6500},"غير مدفوع"]
[4,"محمود",231,"107",4,"D",null,5,null,null,null,3,null,null,1200,null,{"$f":"SUM(M7-N7)","v":0},null,null,null,8300,null,7100,"غير مدفوع"]
[5,"نادر 1",256,"112",9,"A",null,8,null,null,null,6,null,null,1300,null,0,null,null,null,5500,null,4200,"غير مدفوع"]
[6,"نادر 2",324,"102",9,"B",null,4,null,null,null,2.5,null,null,1400,null,0,null,null,null,2500,null,1100,"غير مدفوع"]
[7,"نادر 3",528,"114",9,"B",null,4,null,null,null,10,null,null,1500,null,0,null,null,null,9500,null,8000,"غير مدفوع"]
[8,"احمد 2",258,"104",7,"E",null,2,null,null,null,5,null,null,1000,null,0,null,null,null,5000,null,4000,"غير مدفوع"]
[9,"احمد 1",135,"118",4,"E",null,1,null,null,null,5,null,null,1200,null,0,null,null,null,5000,null,3800,"غير مدفوع"]
[10,"سالم 1",125,"108",8,"D",null,1,null,null,null,3,null,null,2300,null,null,null,null,null,3200,null,900,"غير مدفوع"]
[11,"سالم 2",110,"118",8,"C",null,3,null,null,null,5,null,null,5000,null,null,null,null,null,5000,null,0,"مدفوع"]
[12,"سالم 3",197,"132",6,"C",null,2,null,null,null,5,null,null,1500,null,null,null,null,null,5000,null,3500,"غير مدفوع"]

{"sheet":"حزيران","index":5,"n_rows":15,"n_cols":24,"rows_kept":15,"cut":false,"hidden":false,"merged":[]}
[]
[]
["الرقم","الإسم","رقم المشترك","رقم العلبة","المنطقة","الشارع","البناية","الطابق","هاتف","تاريخ الإشتراك","D","A","C","D","المبلغ المدفوع","تاريخ الدفعة","إستهلاك الكيلوات","إنتقال المتأخرات","سعر العداد","سعر الديجنتير","إجمالي سعر الكيلوات","رسم الإشتراك","المبلغ المطلوب","مدفوع / غير"]
[{"$f":"ROW()-3","v":1},"ابراهيم 1",159,112,1,"A",null,6,null,null,null,5,231,100,2500,null,null,1500,null,null,5000,null,{"$f":"SUM(R4:U4)-O4","v":4000},{"$f":"IF(W4<=0,\"مدفوع\",\"غير مدفوع\")","v":"غير مدفوع"}]
[2,"ابراهيم 2",143,"107",1,"A",null,2,null,null,null,6,224,100,6400,null,null,null,null,null,6400,null,{"$f":"SUM(R5:U5)-O5","v":0},{"$f":"IF(W5<=0,\"مدفوع\",\"غير مدفوع\")","v":"مدفوع"}]
[3,"جمال",147,"107",2,"C",null,1,null,null,null,3,300,167,1000,null,null,null,null,null,7500,null,{"$f":"SUM(R6:U6)-O6","v":6500},"غير مدفوع"]
[4,"محمود",231,"107",4,"D",null,5,null,null,null,3,null,null,1200,null,{"$f":"SUM(M7-N7)","v":0},null,null,null,8300,null,7100,"غير مدفوع"]
[5,"نادر 1",256,"112",9,"A",null,8,null,null,null,6,null,null,1300,null,0,null,null,null,5500,null,4200,"غير مدفوع"]
[6,"نادر 2",324,"102",9,"B",null,4,null,null,null,2.5,null,null,1400,null,0,null,null,null,2500,null,1100,"غير مدفوع"]
[7,"نادر 3",528,"114",9,"B",null,4,null,null,null,10,null,null,1500,null,0,null,null,null,9500,null,8000,"غير مدفوع"]
[8,"احمد 2",258,"104",7,"E",null,2,null,null,null,5,null,null,1000,null,0,null,null,null,5000,null,4000,"غير مدفوع"]
[9,"احمد 1",135,"118",4,"E",null,1,null,null,null,5,null,null,1200,null,0,null,null,null,5000,null,3800,"غير مدفوع"]
[10,"سالم 1",125,"108",8,"D",null,1,null,null,null,3,null,null,2300,null,null,null,null,null,3200,null,900,"غير مدفوع"]
[11,"سالم 2",110,"118",8,"C",null,3,null,null,null,5,null,null,5000,null,null,null,null,null,5000,null,0,"مدفوع"]
[12,"سالم 3",197,"132",6,"C",null,2,null,null,null,5,null,null,1500,null,null,null,null,null,5000,null,3500,"غير مدفوع"]

{"sheet":"تموز","index":6,"n_rows":15,"n_cols":24,"rows_kept":15,"cut":false,"hidden":false,"merged":[]}
[]
[]
["الرقم","الإسم","رقم المشترك","رقم العلبة","المنطقة","الشارع","البناية","الطابق","هاتف","تاريخ الإشتراك","D","A","C","D","المبلغ المدفوع","تاريخ الدفعة","إستهلاك الكيلوات","إنتقال المتأخرات","سعر العداد","سعر الديجنتير","إجمالي سعر الكيلوات","رسم الإشتراك","المبلغ المطلوب","مدفوع / غير"]
[{"$f":"ROW()-3","v":1},"ابراهيم 1",159,112,1,"A",null,6,null,null,null,5,231,100,2500,null,null,1500,null,null,5000,null,{"$f":"SUM(R4:U4)-O4","v":4000},{"$f":"IF(W4<=0,\"مدفوع\",\"غير مدفوع\")","v":"غير مدفوع"}]
[2,"ابراهيم 2",143,"107",1,"A",null,2,null,null,null,6,224,100,6400,null,null,null,null,null,6400,null,{"$f":"SUM(R5:U5)-O5","v":0},{"$f":"IF(W5<=0,\"مدفوع\",\"غير مدفوع\")","v":"مدفوع"}]
[3,"جمال",147,"107",2,"C",null,1,null,null,null,3,300,167,1000,null,null,null,null,null,7500,null,{"$f":"SUM(R6:U6)-O6","v":6500},"غير مدفوع"]
[4,"محمود",231,"107",4,"D",null,5,null,null,null,3,null,null,1200,null,{"$f":"SUM(M7-N7)","v":0},null,null,null,8300,null,7100,"غير مدفوع"]
[5,"نادر 1",256,"112",9,"A",null,8,null,null,null,6,null,null,1300,null,0,null,null,null,5500,null,4200,"غير مدفوع"]
[6,"نادر 2",324,"102",9,"B",null,4,null,null,null,2.5,null,null,1400,null,0,null,null,null,2500,null,1100,"غير مدفوع"]
[7,"نادر 3",528,"114",9,"B",null,4,null,null,null,10,null,null,1500,null,0,null,null,null,9500,null,8000,"غير مدفوع"]
[8,"احمد 2",258,"104",7,"E",null,2,null,null,null,5,null,null,1000,null,0,null,null,null,5000,null,4000,"غير مدفوع"]
[9,"احمد 1",135,"118",4,"E",null,1,null,null,null,5,null,null,1200,null,0,null,null,null,5000,null,3800,"غير مدفوع"]
[10,"سالم 1",125,"108",8,"D",null,1,null,null,null,3,null,null,2300,null,null,null,null,null,3200,null,900,"غير مدفوع"]
[11,"سالم 2",110,"118",8,"C",null,3,null,null,null,5,null,null,5000,null,null,null,null,null,5000,null,0,"مدفوع"]
[12,"سالم 3",197,"132",6,"C",null,2,null,null,null,5,null,null,1500,null,null,null,null,null,5000,null,3500,"غير مدفوع"]

{"sheet":"آب","index":7,"n_rows":15,"n_cols":24,"rows_kept":15,"cut":false,"hidden":false,"merged":[]}
[]
[]
["الرقم","الإسم","رقم المشترك","رقم العلبة","المنطقة","الشارع","البناية","الطابق","هاتف","تاريخ الإشتراك","D","A","C","D","المبلغ المدفوع","تاريخ الدفعة","إستهلاك الكيلوات","إنتقال المتأخرات","سعر العداد","سعر الديجنتير","إجمالي سعر الكيلوات","رسم الإشتراك","المبلغ المطلوب","مدفوع / غير"]
[{"$f":"ROW()-3","v":1},"ابراهيم 1",159,112,1,"A",null,6,null,null,null,5,231,100,2500,null,null,1500,null,null,5000,null,{"$f":"SUM(R4:U4)-O4","v":4000},{"$f":"IF(W4<=0,\"مدفوع\",\"غير مدفوع\")","v":"غير مدفوع"}]
[2,"ابراهيم 2",143,"107",1,"A",null,2,null,null,null,6,224,100,6400,null,null,null,null,null,6400,null,{"$f":"SUM(R5:U5)-O5","v":0},{"$f":"IF(W5<=0,\"مدفوع\",\"غير مدفوع\")","v":"مدفوع"}]
[3,"جمال",147,"107",2,"C",null,1,null,null,null,3,300,167,1000,null,null,null,null,null,7500,null,{"$f":"SUM(R6:U6)-O6","v":6500},"غير مدفوع"]
[4,"محمود",231,"107",4,"D",null,5,null,null,null,3,null,null,1200,null,{"$f":"SUM(M7-N7)","v":0},null,null,null,8300,null,7100,"غير مدفوع"]
[5,"نادر 1",256,"112",9,"A",null,8,null,null,null,6,null,null,1300,null,0,null,null,null,5500,null,4200,"غير مدفوع"]
[6,"نادر 2",324,"102",9,"B",null,4,null,null,null,2.5,null,null,1400,null,0,null,null,null,2500,null,1100,"غير مدفوع"]
[7,"نادر 3",528,"114",9,"B",null,4,null,null,null,10,null,null,1500,null,0,null,null,null,9500,null,8000,"غير مدفوع"]
[8,"احمد 2",258,"104",7,"E",null,2,null,null,null,5,null,null,1000,null,0,null,null,null,5000,null,4000,"غير مدفوع"]
[9,"احمد 1",135,"118",4,"E",null,1,null,null,null,5,null,null,1200,null,0,null,null,null,5000,null,3800,"غير مدفوع"]
[10,"سالم 1",125,"108",8,"D",null,1,null,null,null,3,null,null,2300,null,null,null,null,null,3200,null,900,"غير مدفوع"]
[11,"سالم 2",110,"118",8,"C",null,3,null,null,null,5,null,null,5000,null,null,null,null,null,5000,null,0,"مدفوع"]
[12,"سالم 3",197,"132",6,"C",null,2,null,null,null,5,null,null,1500,null,null,null,null,null,5000,null,3500,"غير مدفوع"]

{"sheet":"أيلول","index":8,"n_rows":15,"n_cols":24,"rows_kept":15,"cut":false,"hidden":false,"merged":[]}
[]
[]
["الرقم","الإسم","رقم المشترك","رقم العلبة","المنطقة","الشارع","البناية","الطابق","هاتف","تاريخ الإشتراك","D","A","C","D","المبلغ المدفوع","تاريخ الدفعة","إستهلاك الكيلوات","إنتقال المتأخرات","سعر العداد","سعر الديجنتير","إجمالي سعر الكيلوات","رسم الإشتراك","المبلغ المطلوب","مدفوع / غير"]
[{"$f":"ROW()-3","v":1},"ابراهيم 1",159,112,1,"A",null,6,null,null,null,5,231,100,2500,null,null,1500,null,null,5000,null,{"$f":"SUM(R4:U4)-O4","v":4000},{"$f":"IF(W4<=0,\"مدفوع\",\"غير مدفوع\")","v":"غير مدفوع"}]
[2,"ابراهيم 2",143,"107",1,"A",null,2,null,null,null,6,224,100,6400,null,null,null,null,null,6400,null,{"$f":"SUM(R5:U5)-O5","v":0},{"$f":"IF(W5<=0,\"مدفوع\",\"غير مدفوع\")","v":"مدفوع"}]
[3,"جمال",147,"107",2,"C",null,1,null,null,null,3,300,167,1000,null,null,null,null,null,7500,null,{"$f":"SUM(R6:U6)-O6","v":6500},"غير مدفوع"]
[4,"محمود",231,"107",4,"D",null,5,null,null,null,3,null,null,1200,null,{"$f":"SUM(M7-N7)","v":0},null,null,null,8300,null,7100,"غير مدفوع"]
[5,"نادر 1",256,"112",9,"A",null,8,null,null,null,6,null,null,1300,null,0,null,null,null,5500,null,4200,"غير مدفوع"]
[6,"نادر 2",324,"102",9,"B",null,4,null,null,null,2.5,null,null,1400,null,0,null,null,null,2500,null,1100,"غير مدفوع"]
[7,"نادر 3",528,"114",9,"B",null,4,null,null,null,10,null,null,1500,null,0,null,null,null,9500,null,8000,"غير مدفوع"]
[8,"احمد 2",258,"104",7,"E",null,2,null,null,null,5,null,null,1000,null,0,null,null,null,5000,null,4000,"غير مدفوع"]
[9,"احمد 1",135,"118",4,"E",null,1,null,null,null,5,null,null,1200,null,0,null,null,null,5000,null,3800,"غير مدفوع"]
[10,"سالم 1",125,"108",8,"D",null,1,null,null,null,3,null,null,2300,null,null,null,null,null,3200,null,900,"غير مدفوع"]
[11,"سالم 2",110,"118",8,"C",null,3,null,null,null,5,null,null,5000,null,null,null,null,null,5000,null,0,"مدفوع"]
[12,"سالم 3",197,"132",6,"C",null,2,null,null,null,5,null,null,1500,null,null,null,null,null,5000,null,3500,"غير مدفوع"]

{"sheet":"تشرين1","index":9,"n_rows":15,"n_cols":24,"rows_kept":15,"cut":false,"hidden":false,"merged":[]}
[]
[]
["الرقم","الإسم","رقم المشترك","رقم العلبة","المنطقة","الشارع","البناية","الطابق","هاتف","تاريخ الإشتراك","D","A","C","D","المبلغ المدفوع","تاريخ الدفعة","إستهلاك الكيلوات","إنتقال المتأخرات","سعر العداد","سعر الديجنتير","إجمالي سعر الكيلوات","رسم الإشتراك","المبلغ المطلوب","مدفوع / غير"]
[{"$f":"ROW()-3","v":1},"ابراهيم 1",159,112,1,"A",null,6,null,null,null,5,231,100,2500,null,null,1500,null,null,5000,null,{"$f":"SUM(R4:U4)-O4","v":4000},{"$f":"IF(W4<=0,\"مدفوع\",\"غير مدفوع\")","v":"غير مدفوع"}]
[2,"ابراهيم 2",143,"107",1,"A",null,2,null,null,null,6,224,100,6400,null,null,null,null,null,6400,null,{"$f":"SUM(R5:U5)-O5","v":0},{"$f":"IF(W5<=0,\"مدفوع\",\"غير مدفوع\")","v":"مدفوع"}]
[3,"جمال",147,"107",2,"C",null,1,null,null,null,3,300,167,1000,null,null,null,null,null,7500,null,{"$f":"SUM(R6:U6)-O6","v":6500},"غير مدفوع"]
[4,"محمود",231,"107",4,"D",null,5,null,null,null,3,null,null,1200,null,{"$f":"SUM(M7-N7)","v":0},null,null,null,8300,null,7100,"غير مدفوع"]
[5,"نادر 1",256,"112",9,"A",null,8,null,null,null,6,null,null,1300,null,0,null,null,null,5500,null,4200,"غير مدفوع"]
[6,"نادر 2",324,"102",9,"B",null,4,null,null,null,2.5,null,null,1400,null,0,null,null,null,2500,null,1100,"غير مدفوع"]
[7,"نادر 3",528,"114",9,"B",null,4,null,null,null,10,null,null,1500,null,0,null,null,null,9500,null,8000,"غير مدفوع"]
[8,"احمد 2",258,"104",7,"E",null,2,null,null,null,5,null,null,1000,null,0,null,null,null,5000,null,4000,"غير مدفوع"]
[9,"احمد 1",135,"118",4,"E",null,1,null,null,null,5,null,null,1200,null,0,null,null,null,5000,null,3800,"غير مدفوع"]
[10,"سالم 1",125,"108",8,"D",null,1,null,null,null,3,null,null,2300,null,null,null,null,null,3200,null,900,"غير مدفوع"]
[11,"سالم 2",110,"118",8,"C",null,3,null,null,null,5,null,null,5000,null,null,null,null,null,5000,null,0,"مدفوع"]
[12,"سالم 3",197,"132",6,"C",null,2,null,null,null,5,null,null,1500,null,null,null,null,null,5000,null,3500,"غير مدفوع"]

{"sheet":"تشرين2","index":10,"n_rows":15,"n_cols":24,"rows_kept":15,"cut":false,"hidden":false,"merged":[]}
[]
[]
["الرقم","الإسم","رقم المشترك","رقم العلبة","المنطقة","الشارع","البناية","الطابق","هاتف","تاريخ الإشتراك","D","A","C","D","المبلغ المدفوع","تاريخ الدفعة","إستهلاك الكيلوات","إنتقال المتأخرات","سعر العداد","سعر الديجنتير","إجمالي سعر الكيلوات","رسم الإشتراك","المبلغ المطلوب","مدفوع / غير"]
[{"$f":"ROW()-3","v":1},"ابراهيم 1",159,112,1,"A",null,6,null,null,null,5,231,100,2500,null,null,1500,null,null,5000,null,{"$f":"SUM(R4:U4)-O4","v":4000},{"$f":"IF(W4<=0,\"مدفوع\",\"غير مدفوع\")","v":"غير مدفوع"}]
[2,"ابراهيم 2",143,"107",1,"A",null,2,null,null,null,6,224,100,6400,null,null,null,null,null,6400,null,{"$f":"SUM(R5:U5)-O5","v":0},{"$f":"IF(W5<=0,\"مدفوع\",\"غير مدفوع\")","v":"مدفوع"}]
[3,"جمال",147,"107",2,"C",null,1,null,null,null,3,300,167,1000,null,null,null,null,null,7500,null,{"$f":"SUM(R6:U6)-O6","v":6500},"غير مدفوع"]
[4,"محمود",231,"107",4,"D",null,5,null,null,null,3,null,null,1200,null,{"$f":"SUM(M7-N7)","v":0},null,null,null,8300,null,7100,"غير مدفوع"]
[5,"نادر 1",256,"112",9,"A",null,8,null,null,null,6,null,null,1300,null,0,null,null,null,5500,null,4200,"غير مدفوع"]
[6,"نادر 2",324,"102",9,"B",null,4,null,null,null,2.5,null,null,1400,null,0,null,null,null,2500,null,1100,"غير مدفوع"]
[7,"نادر 3",528,"114",9,"B",null,4,null,null,null,10,null,null,1500,null,0,null,null,null,9500,null,8000,"غير مدفوع"]
[8,"احمد 2",258,"104",7,"E",null,2,null,null,null,5,null,null,1000,null,0,null,null,null,5000,null,4000,"غير مدفوع"]
[9,"احمد 1",135,"118",4,"E",null,1,null,null,null,5,null,null,1200,null,0,null,null,null,5000,null,3800,"غير مدفوع"]
[10,"سالم 1",125,"108",8,"D",null,1,null,null,null,3,null,null,2300,null,null,null,null,null,3200,null,900,"غير مدفوع"]
[11,"سالم 2",110,"118",8,"C",null,3,null,null,null,5,null,null,5000,null,null,null,null,null,5000,null,0,"مدفوع"]
[12,"سالم 3",197,"132",6,"C",null,2,null,null,null,5,null,null,1500,null,null,null,null,null,5000,null,3500,"غير مدفوع"]

{"sheet":"كانون1","index":11,"n_rows":15,"n_cols":24,"rows_kept":15,"cut":false,"hidden":false,"merged":[]}
[]
[]
["الرقم","الإسم","رقم المشترك","رقم العلبة","المنطقة","الشارع","البناية","الطابق","هاتف","تاريخ الإشتراك","D","A","C","D","المبلغ المدفوع","تاريخ الدفعة","إستهلاك الكيلوات","إنتقال المتأخرات","سعر العداد","سعر الديجنتير","إجمالي سعر الكيلوات","رسم الإشتراك","المبلغ المطلوب","مدفوع / غير"]
[{"$f":"ROW()-3","v":1},"ابراهيم 1",159,112,1,"A",null,6,null,null,null,5,231,100,2500,null,null,1500,null,null,5000,null,{"$f":"SUM(R4:U4)-O4","v":4000},{"$f":"IF(W4<=0,\"مدفوع\",\"غير مدفوع\")","v":"غير مدفوع"}]
[2,"ابراهيم 2",143,"107",1,"A",null,2,null,null,null,6,224,100,6400,null,null,null,null,null,6400,null,{"$f":"SUM(R5:U5)-O5","v":0},{"$f":"IF(W5<=0,\"مدفوع\",\"غير مدفوع\")","v":"مدفوع"}]
[3,"جمال",147,"107",2,"C",null,1,null,null,null,3,300,167,1000,null,null,null,null,null,7500,null,{"$f":"SUM(R6:U6)-O6","v":6500},"غير مدفوع"]
[4,"محمود",231,"107",4,"D",null,5,null,null,null,3,null,null,1200,null,{"$f":"SUM(M7-N7)","v":0},null,null,null,8300,null,7100,"غير مدفوع"]
[5,"نادر 1",256,"112",9,"A",null,8,null,null,null,6,null,null,1300,null,0,null,null,null,5500,null,4200,"غير مدفوع"]
[6,"نادر 2",324,"102",9,"B",null,4,null,null,null,2.5,null,null,1400,null,0,null,null,null,2500,null,1100,"غير مدفوع"]
[7,"نادر 3",528,"114",9,"B",null,4,null,null,null,10,null,null,1500,null,0,null,null,null,9500,null,8000,"غير مدفوع"]
[8,"احمد 2",258,"104",7,"E",null,2,null,null,null,5,null,null,1000,null,0,null,null,null,5000,null,4000,"غير مدفوع"]
[9,"احمد 1",135,"118",4,"E",null,1,null,null,null,5,null,null,1200,null,0,null,null,null,5000,null,3800,"غير مدفوع"]
[10,"سالم 1",125,"108",8,"D",null,1,null,null,null,3,null,null,2300,null,null,null,null,null,3200,null,900,"غير مدفوع"]
[11,"سالم 2",110,"118",8,"C",null,3,null,null,null,5,null,null,5000,null,null,null,null,null,5000,null,0,"مدفوع"]
[12,"سالم 3",197,"132",6,"C",null,2,null,null,null,5,null,null,1500,null,null,null,null,null,5000,null,3500,"غير مدفوع"]

{"sheet":"كانون2","index":12,"n_rows":15,"n_cols":24,"rows_kept":15,"cut":false,"hidden":false,"merged":[]}
[]
[]
["الرقم","الإسم","رقم المشترك","رقم العلبة","المنطقة","الشارع","البناية","الطابق","هاتف","تاريخ الإشتراك","D","A","C","D","المبلغ المدفوع","تاريخ الدفعة","إستهلاك الكيلوات","إنتقال المتأخرات","سعر العداد","سعر الديجنتير","إجمالي سعر الكيلوات","رسم الإشتراك","المبلغ المطلوب","مدفوع / غير"]
[{"$f":"ROW()-3","v":1},"ابراهيم 1",159,112,1,"A",null,6,null,null,null,5,231,100,2500,null,null,1500,null,null,5000,null,{"$f":"SUM(R4:U4)-O4","v":4000},{"$f":"IF(W4<=0,\"مدفوع\",\"غير مدفوع\")","v":"غير مدفوع"}]
[2,"ابراهيم 2",143,"107",1,"A",null,2,null,null,null,6,224,100,6400,null,null,null,null,null,6400,null,{"$f":"SUM(R5:U5)-O5","v":0},{"$f":"IF(W5<=0,\"مدفوع\",\"غير مدفوع\")","v":"مدفوع"}]
[3,"جمال",147,"107",2,"C",null,1,null,null,null,3,300,167,1000,null,null,null,null,null,7500,null,{"$f":"SUM(R6:U6)-O6","v":6500},"غير مدفوع"]
[4,"محمود",231,"107",4,"D",null,5,null,null,null,3,null,null,1200,null,{"$f":"SUM(M7-N7)","v":0},null,null,null,8300,null,7100,"غير مدفوع"]
[5,"نادر 1",256,"112",9,"A",null,8,null,null,null,6,null,null,1300,null,0,null,null,null,5500,null,4200,"غير مدفوع"]
[6,"نادر 2",324,"102",9,"B",null,4,null,null,null,2.5,null,null,1400,null,0,null,null,null,2500,null,1100,"غير مدفوع"]
[7,"نادر 3",528,"114",9,"B",null,4,null,null,null,10,null,null,1500,null,0,null,null,null,9500,null,8000,"غير مدفوع"]
[8,"احمد 2",258,"104",7,"E",null,2,null,null,null,5,null,null,1000,null,0,null,null,null,5000,null,4000,"غير مدفوع"]
[9,"احمد 1",135,"118",4,"E",null,1,null,null,null,5,null,null,1200,null,0,null,null,null,5000,null,3800,"غير مدفوع"]
[10,"سالم 1",125,"108",8,"D",null,1,null,null,null,3,null,null,2300,null,null,null,null,null,3200,null,900,"غير مدفوع"]
[11,"سالم 2",110,"118",8,"C",null,3,null,null,null,5,null,null,5000,null,null,null,null,null,5000,null,0,"مدفوع"]
[12,"سالم 3",197,"132",6,"C",null,2,null,null,null,5,null,null,1500,null,null,null,null,null,5000,null,3500,"غير مدفوع"]

{"sheet":"Control","index":13,"n_rows":19,"n_cols":8,"rows_kept":19,"cut":false,"hidden":true,"merged":[]}
[]
["الإسم","رقم العلبة","المنطقة","الشارع","البناية","مدفوع / غير","أوراق العمل","الأشهر"]
[{"$f":"DATA!B4","v":"ابراهيم 1"},112,1,"A","A","مدفوع","DATA","كانون2"]
[{"$f":"DATA!B5","v":"ابراهيم 2"},"107",2,"B","B","غير مدفوع","كانون2","شباط"]
[{"$f":"DATA!B6","v":"جمال"},"101",3,null,"C",null,"شباط","آذار"]
[{"$f":"DATA!B7","v":"محمود"},"112",4,null,"D",null,"آذار","نيسان"]
[{"$f":"DATA!B8","v":"نادر 1"},"102",5,null,"E",null,"نيسان","أيار"]
[{"$f":"DATA!B9","v":"نادر 2"},"114",6,null,"F",null,"أيار","حزيران"]
[{"$f":"DATA!B10","v":"نادر 3"},"104",7,null,null,null,"حزيران","تموز"]
[{"$f":"DATA!B11","v":"احمد 2"},"118",8,null,null,null,"تموز","آب"]
[{"$f":"DATA!B12","v":"احمد 1"},"108",9,null,null,null,"آب","أيلول"]
[{"$f":"DATA!B13","v":"سالم 1"},"132",10,null,null,null,"أيلول","تشرين1"]
[{"$f":"DATA!B14","v":"سالم 2"},107,null,null,null,null,"تشرين1","تشرين2"]
[{"$f":"DATA!B15","v":"سالم 3"},"122",null,null,null,null,"تشرين2","كانون1"]
[null,"109",null,null,null,null,"كانون1"]
[null,"123"]
[null,"117"]
[null,"129"]
[null,"124"]